{"text_format":"1","workbook":"xlsx","n_sheets":6,"sheets":["Startside","Fordeling","Renteomkostninger","SE EKSEMPLER =>","Eks. på Fordeling","Eks. på Renteomkostninger"],"not_rendered":{"charts":0,"images":0,"macros":1,"external_links":0,"defined_names":0,"comments":0,"pivot_tables":0},"unopened":[],"bounds":{"document_bytes":16777216,"sheet_cells":100000,"rows_first":2000,"rows_last":500,"rows_between":2000,"halvings":0,"cell_chars":16384,"cell_head_chars":4096},"cells_cut":0,"cells_raw":0,"read":"whole","date_system":"1900"}

{"sheet":"Startside","index":0,"n_rows":0,"n_cols":0,"rows_kept":0,"cut":false,"hidden":false,"merged":[]}

{"sheet":"Fordeling","index":1,"n_rows":64,"n_cols":8,"rows_kept":64,"cut":false,"hidden":false,"merged":[[4,6,4,7],[12,3,12,4],[12,5,12,6],[8,6,8,7],[9,6,9,7],[5,6,5,7]]}
[]
[null,"Udfyld felter"]
[]
[null,"Samlede finansieringsomkostninger i 2025",{"$f":"Renteomkostninger!C4","v":0},null,"Kontrol af manuel fordeling"]
[null,"heraf engangsomkostninger",{"$f":"Renteomkostninger!C5","v":0},null,"Samlede finansieringsomk.",null,{"$f":"IF($C$8=\"Manuel\",\nIF(ABS(SUM(F$15:F64)-C4)<1,\"Afstemt\",\"Der er manuelt fordelt \")\n&IF(ABS(SUM(F$15:F64)-C4)<1,\"\",ABS(SUM(F$15:F64)-C4))\n&IF(ABS(SUM(F$15:F64)-C4)<1,\"\",IF((SUM(F$15:F64)-C4)<0,\" kr. for lidt\",\" kr. for meget\")),\"\")","v":""}]
[null,"Samlede restgæld på lån",{"$f":"Renteomkostninger!C7","v":0},null,"Samlede engangsomk.",null,{"$f":"IF($C$8=\"Manuel\",\nIF(ABS(SUM(G$15:G64)-C5)<1,\"Afstemt\",\"Der er manuelt fordelt \")\n&IF(ABS(SUM(G$15:G64)-C5)<1,\"\",ABS(SUM(G$15:G64)-C5))\n&IF(ABS(SUM(G$15:G64)-C5)<1,\"\",IF((SUM(G$15:G64)-C5)<0,\" kr. for lidt\",\" kr. for meget\")),\"\")","v":""}]
[]
[null,"Vælg fordelingsmetode (beregnet/manuel)","Beregnet",null,"Kontrol af restgæld"]
[null,"Nedskalér finansieringsomk. (Ja/Nej)","Nej",null,"Restgæld og anskaffelsespris",null,{"$f":"IF(SUM(Tabel2[Anskaffelsespris])-C6>=0,\"Afstemt\",\"Restgælden overstiger anskaffelsessum\")","v":"Afstemt"}]
[null,"Nedskaleret finansieringsomkostninger",{"$f":"IFERROR(IF($C$9=\"Ja\",MIN(1,SUM(Tabel2[Anskaffelsespris])/$C$6)*C4,C4),\"\")","v":0},null,"Evt. bemærkning"]
[null,"heraf engangsomkostninger",{"$f":"IFERROR(IF($C$9=\"Ja\",MIN(1,SUM(Tabel2[Anskaffelsespris])/$C$6)*C5,C5),\"\")","v":0}]
[]
[null,null,null,"Beregnet fordeling",null,"Manuel"]
[null,"Tillægstitel","Anskaffelsespris","Finansierings-omkostninger","Heraf engangs-omkostninger","Finansieringsomkostninger ","Heraf engangs-omkostninger ","Evt. bemærkning (valgfrit)"]
[null,null,null,{"$f":"IFERROR(IF($C$8=\"Manuel\",\"\",IF($C$9=\"Ja\",$C$10,$C$4)*Tabel2[[#This Row],[Anskaffelsespris]]/SUM(Tabel2[Anskaffelsespris])),\"\")","v":""},{"$f":"IFERROR(IF($C$8=\"Manuel\",\"\",IF($C$9=\"Ja\",$C$11,$C$5)*Tabel2[[#This Row],[Anskaffelsespris]]/SUM(Tabel2[Anskaffelsespris])),\"\")","v":""}]
[null,null,null,{"$f":"IFERROR(IF($C$8=\"Manuel\",\"\",IF($C$9=\"Ja\",$C$10,$C$4)*Tabel2[[#This Row],[Anskaffelsespris]]/SUM(Tabel2[Anskaffelsespris])),\"\")","v":""},{"$f":"IFERROR(IF($C$8=\"Manuel\",\"\",IF($C$9=\"Ja\",$C$11,$C$5)*Tabel2[[#This Row],[Anskaffelsespris]]/SUM(Tabel2[Anskaffelsespris])),\"\")","v":""}]
[null,null,null,{"$f":"IFERROR(IF($C$8=\"Manuel\",\"\",IF($C$9=\"Ja\",$C$10,$C$4)*Tabel2[[#This Row],[Anskaffelsespris]]/SUM(Tabel2[Anskaffelsespris])),\"\")","v":""},{"$f":"IFERROR(IF($C$8=\"Manuel\",\"\",IF($C$9=\"Ja\",$C$11,$C$5)*Tabel2[[#This Row],[Anskaffelsespris]]/SUM(Tabel2[Anskaffelsespris])),\"\")","v":""}]
[null,null,null,{"$f":"IFERROR(IF($C$8=\"Manuel\",\"\",IF($C$9=\"Ja\",$C$10,$C$4)*Tabel2[[#This Row],[Anskaffelsespris]]/SUM(Tabel2[Anskaffelsespris])),\"\")","v":""},{"$f":"IFERROR(IF($C$8=\"Manuel\",\"\",IF($C$9=\"Ja\",$C$11,$C$5)*Tabel2[[#This Row],[Anskaffelsespris]]/SUM(Tabel2[Anskaffelsespris])),\"\")","v":""}]
[null,null,null,{"$f":"IFERROR(IF($C$8=\"Manuel\",\"\",IF($C$9=\"Ja\",$C$10,$C$4)*Tabel2[[#This Row],[Anskaffelsespris]]/SUM(Tabel2[Anskaffelsespris])),\"\")","v":""},{"$f":"IFERROR(IF($C$8=\"Manuel\",\"\",IF($C$9=\"Ja\",$C$11,$C$5)*Tabel2[[#This Row],[Anskaffelsespris]]/SUM(Tabel2[Anskaffelsespris])),\"\")","v":""}]
[null,null,null,{"$f":"IFERROR(IF($C$8=\"Manuel\",\"\",IF($C$9=\"Ja\",$C$10,$C$4)*Tabel2[[#This Row],[Anskaffelsespris]]/SUM(Tabel2[Anskaffelsespris])),\"\")","v":""},{"$f":"IFERROR(IF($C$8=\"Manuel\",\"\",IF($C$9=\"Ja\",$C$11,$C$5)*Tabel2[[#This Row],[Anskaffelsespris]]/SUM(Tabel2[Anskaffelsespris])),\"\")","v":""}]
[null,null,null,{"$f":"IFERROR(IF($C$8=\"Manuel\",\"\",IF($C$9=\"Ja\",$C$10,$C$4)*Tabel2[[#This Row],[Anskaffelsespris]]/SUM(Tabel2[Anskaffelsespris])),\"\")","v":""},{"$f":"IFERROR(IF($C$8=\"Manuel\",\"\",IF($C$9=\"Ja\",$C$11,$C$5)*Tabel2[[#This Row],[Anskaffelsespris]]/SUM(Tabel2[Anskaffelsespris])),\"\")","v":""}]
[null,null,null,{"$f":"IFERROR(IF($C$8=\"Manuel\",\"\",IF($C$9=\"Ja\",$C$10,$C$4)*Tabel2[[#This Row],[Anskaffelsespris]]/SUM(Tabel2[Anskaffelsespris])),\"\")","v":""},{"$f":"IFERROR(IF($C$8=\"Manuel\",\"\",IF($C$9=\"Ja\",$C$11,$C$5)*Tabel2[[#This Row],[Anskaffelsespris]]/SUM(Tabel2[Anskaffelsespris])),\"\")","v":""}]
[null,null,null,{"$f":"IFERROR(IF($C$8=\"Manuel\",\"\",IF($C$9=\"Ja\",$C$10,$C$4)*Tabel2[[#This Row],[Anskaffelsespris]]/SUM(Tabel2[Anskaffelsespris])),\"\")","v":""},{"$f":"IFERROR(IF($C$8=\"Manuel\",\"\",IF($C$9=\"Ja\",$C$11,$C$5)*Tabel2[[#This Row],[Anskaffelsespris]]/SUM(Tabel2[Anskaffelsespris])),\"\")","v":""}]
[null,null,null,{"$f":"IFERROR(IF($C$8=\"Manuel\",\"\",IF($C$9=\"Ja\",$C$10,$C$4)*Tabel2[[#This Row],[Anskaffelsespris]]/SUM(Tabel2[Anskaffelsespris])),\"\")","v":""},{"$f":"IFERROR(IF($C$8=\"Manuel\",\"\",IF($C$9=\"Ja\",$C$11,$C$5)*Tabel2[[#This Row],[Anskaffelsespris]]/SUM(Tabel2[Anskaffelsespris])),\"\")","v":""}]
[null,null,null,{"$f":"IFERROR(IF($C$8=\"Manuel\",\"\",IF($C$9=\"Ja\",$C$10,$C$4)*Tabel2[[#This Row],[Anskaffelsespris]]/SUM(Tabel2[Anskaffelsespris])),\"\")","v":""},{"$f":"IFERROR(IF($C$8=\"Manuel\",\"\",IF($C$9=\"Ja\",$C$11,$C$5)*Tabel2[[#This Row],[Anskaffelsespris]]/SUM(Tabel2[Anskaffelsespris])),\"\")","v":""}]
[null,null,null,{"$f":"IFERROR(IF($C$8=\"Manuel\",\"\",IF($C$9=\"Ja\",$C$10,$C$4)*Tabel2[[#This Row],[Anskaffelsespris]]/SUM(Tabel2[Anskaffelsespris])),\"\")","v":""},{"$f":"IFERROR(IF($C$8=\"Manuel\",\"\",IF($C$9=\"Ja\",$C$11,$C$5)*Tabel2[[#This Row],[Anskaffelsespris]]/SUM(Tabel2[Anskaffelsespris])),\"\")","v":""}]
[null,null,null,{"$f":"IFERROR(IF($C$8=\"Manuel\",\"\",IF($C$9=\"Ja\",$C$10,$C$4)*Tabel2[[#This Row],[Anskaffelsespris]]/SUM(Tabel2[Anskaffelsespris])),\"\")","v":""},{"$f":"IFERROR(IF($C$8=\"Manuel\",\"\",IF($C$9=\"Ja\",$C$11,$C$5)*Tabel2[[#This Row],[Anskaffelsespris]]/SUM(Tabel2[Anskaffelsespris])),\"\")","v":""}]
[null,null,null,{"$f":"IFERROR(IF($C$8=\"Manuel\",\"\",IF($C$9=\"Ja\",$C$10,$C$4)*Tabel2[[#This Row],[Anskaffelsespris]]/SUM(Tabel2[Anskaffelsespris])),\"\")","v":""},{"$f":"IFERROR(IF($C$8=\"Manuel\",\"\",IF($C$9=\"Ja\",$C$11,$C$5)*Tabel2[[#This Row],[Anskaffelsespris]]/SUM(Tabel2[Anskaffelsespris])),\"\")","v":""}]
[null,null,null,{"$f":"IFERROR(IF($C$8=\"Manuel\",\"\",IF($C$9=\"Ja\",$C$10,$C$4)*Tabel2[[#This Row],[Anskaffelsespris]]/SUM(Tabel2[Anskaffelsespris])),\"\")","v":""},{"$f":"IFERROR(IF($C$8=\"Manuel\",\"\",IF($C$9=\"Ja\",$C$11,$C$5)*Tabel2[[#This Row],[Anskaffelsespris]]/SUM(Tabel2[Anskaffelsespris])),\"\")","v":""}]
[null,null,null,{"$f":"IFERROR(IF($C$8=\"Manuel\",\"\",IF($C$9=\"Ja\",$C$10,$C$4)*Tabel2[[#This Row],[Anskaffelsespris]]/SUM(Tabel2[Anskaffelsespris])),\"\")","v":""},{"$f":"IFERROR(IF($C$8=\"Manuel\",\"\",IF($C$9=\"Ja\",$C$11,$C$5)*Tabel2[[#This Row],[Anskaffelsespris]]/SUM(Tabel2[Anskaffelsespris])),\"\")","v":""}]
[null,null,null,{"$f":"IFERROR(IF($C$8=\"Manuel\",\"\",IF($C$9=\"Ja\",$C$10,$C$4)*Tabel2[[#This Row],[Anskaffelsespris]]/SUM(Tabel2[Anskaffelsespris])),\"\")","v":""},{"$f":"IFERROR(IF($C$8=\"Manuel\",\"\",IF($C$9=\"Ja\",$C$11,$C$5)*Tabel2[[#This Row],[Anskaffelsespris]]/SUM(Tabel2[Anskaffelsespris])),\"\")","v":""}]
[null,null,null,{"$f":"IFERROR(IF($C$8=\"Manuel\",\"\",IF($C$9=\"Ja\",$C$10,$C$4)*Tabel2[[#This Row],[Anskaffelsespris]]/SUM(Tabel2[Anskaffelsespris])),\"\")","v":""},{"$f":"IFERROR(IF($C$8=\"Manuel\",\"\",IF($C$9=\"Ja\",$C$11,$C$5)*Tabel2[[#This Row],[Anskaffelsespris]]/SUM(Tabel2[Anskaffelsespris])),\"\")","v":""}]
[null,null,null,{"$f":"IFERROR(IF($C$8=\"Manuel\",\"\",IF($C$9=\"Ja\",$C$10,$C$4)*Tabel2[[#This Row],[Anskaffelsespris]]/SUM(Tabel2[Anskaffelsespris])),\"\")","v":""},{"$f":"IFERROR(IF($C$8=\"Manuel\",\"\",IF($C$9=\"Ja\",$C$11,$C$5)*Tabel2[[#This Row],[Anskaffelsespris]]/SUM(Tabel2[Anskaffelsespris])),\"\")","v":""}]
[null,null,null,{"$f":"IFERROR(IF($C$8=\"Manuel\",\"\",IF($C$9=\"Ja\",$C$10,$C$4)*Tabel2[[#This Row],[Anskaffelsespris]]/SUM(Tabel2[Anskaffelsespris])),\"\")","v":""},{"$f":"IFERROR(IF($C$8=\"Manuel\",\"\",IF($C$9=\"Ja\",$C$11,$C$5)*Tabel2[[#This Row],[Anskaffelsespris]]/SUM(Tabel2[Anskaffelsespris])),\"\")","v":""}]
[null,null,null,{"$f":"IFERROR(IF($C$8=\"Manuel\",\"\",IF($C$9=\"Ja\",$C$10,$C$4)*Tabel2[[#This Row],[Anskaffelsespris]]/SUM(Tabel2[Anskaffelsespris])),\"\")","v":""},{"$f":"IFERROR(IF($C$8=\"Manuel\",\"\",IF($C$9=\"Ja\",$C$11,$C$5)*Tabel2[[#This Row],[Anskaffelsespris]]/SUM(Tabel2[Anskaffelsespris])),\"\")","v":""}]
[null,null,null,{"$f":"IFERROR(IF($C$8=\"Manuel\",\"\",IF($C$9=\"Ja\",$C$10,$C$4)*Tabel2[[#This Row],[Anskaffelsespris]]/SUM(Tabel2[Anskaffelsespris])),\"\")","v":""},{"$f":"IFERROR(IF($C$8=\"Manuel\",\"\",IF($C$9=\"Ja\",$C$11,$C$5)*Tabel2[[#This Row],[Anskaffelsespris]]/SUM(Tabel2[Anskaffelsespris])),\"\")","v":""}]
[null,null,null,{"$f":"IFERROR(IF($C$8=\"Manuel\",\"\",IF($C$9=\"Ja\",$C$10,$C$4)*Tabel2[[#This Row],[Anskaffelsespris]]/SUM(Tabel2[Anskaffelsespris])),\"\")","v":""},{"$f":"IFERROR(IF($C$8=\"Manuel\",\"\",IF($C$9=\"Ja\",$C$11,$C$5)*Tabel2[[#This Row],[Anskaffelsespris]]/SUM(Tabel2[Anskaffelsespris])),\"\")","v":""}]
[null,null,null,{"$f":"IFERROR(IF($C$8=\"Manuel\",\"\",IF($C$9=\"Ja\",$C$10,$C$4)*Tabel2[[#This Row],[Anskaffelsespris]]/SUM(Tabel2[Anskaffelsespris])),\"\")","v":""},{"$f":"IFERROR(IF($C$8=\"Manuel\",\"\",IF($C$9=\"Ja\",$C$11,$C$5)*Tabel2[[#This Row],[Anskaffelsespris]]/SUM(Tabel2[Anskaffelsespris])),\"\")","v":""}]
[null,null,null,{"$f":"IFERROR(IF($C$8=\"Manuel\",\"\",IF($C$9=\"Ja\",$C$10,$C$4)*Tabel2[[#This Row],[Anskaffelsespris]]/SUM(Tabel2[Anskaffelsespris])),\"\")","v":""},{"$f":"IFERROR(IF($C$8=\"Manuel\",\"\",IF($C$9=\"Ja\",$C$11,$C$5)*Tabel2[[#This Row],[Anskaffelsespris]]/SUM(Tabel2[Anskaffelsespris])),\"\")","v":""}]
[null,null,null,{"$f":"IFERROR(IF($C$8=\"Manuel\",\"\",IF($C$9=\"Ja\",$C$10,$C$4)*Tabel2[[#This Row],[Anskaffelsespris]]/SUM(Tabel2[Anskaffelsespris])),\"\")","v":""},{"$f":"IFERROR(IF($C$8=\"Manuel\",\"\",IF($C$9=\"Ja\",$C$11,$C$5)*Tabel2[[#This Row],[Anskaffelsespris]]/SUM(Tabel2[Anskaffelsespris])),\"\")","v":""}]
[null,null,null,{"$f":"IFERROR(IF($C$8=\"Manuel\",\"\",IF($C$9=\"Ja\",$C$10,$C$4)*Tabel2[[#This Row],[Anskaffelsespris]]/SUM(Tabel2[Anskaffelsespris])),\"\")","v":""},{"$f":"IFERROR(IF($C$8=\"Manuel\",\"\",IF($C$9=\"Ja\",$C$11,$C$5)*Tabel2[[#This Row],[Anskaffelsespris]]/SUM(Tabel2[Anskaffelsespris])),\"\")","v":""}]
[null,null,null,{"$f":"IFERROR(IF($C$8=\"Manuel\",\"\",IF($C$9=\"Ja\",$C$10,$C$4)*Tabel2[[#This Row],[Anskaffelsespris]]/SUM(Tabel2[Anskaffelsespris])),\"\")","v":""},{"$f":"IFERROR(IF($C$8=\"Manuel\",\"\",IF($C$9=\"Ja\",$C$11,$C$5)*Tabel2[[#This Row],[Anskaffelsespris]]/SUM(Tabel2[Anskaffelsespris])),\"\")","v":""}]
[null,null,null,{"$f":"IFERROR(IF($C$8=\"Manuel\",\"\",IF($C$9=\"Ja\",$C$10,$C$4)*Tabel2[[#This Row],[Anskaffelsespris]]/SUM(Tabel2[Anskaffelsespris])),\"\")","v":""},{"$f":"IFERROR(IF($C$8=\"Manuel\",\"\",IF($C$9=\"Ja\",$C$11,$C$5)*Tabel2[[#This Row],[Anskaffelsespris]]/SUM(Tabel2[Anskaffelsespris])),\"\")","v":""}]
[null,null,null,{"$f":"IFERROR(IF($C$8=\"Manuel\",\"\",IF($C$9=\"Ja\",$C$10,$C$4)*Tabel2[[#This Row],[Anskaffelsespris]]/SUM(Tabel2[Anskaffelsespris])),\"\")","v":""},{"$f":"IFERROR(IF($C$8=\"Manuel\",\"\",IF($C$9=\"Ja\",$C$11,$C$5)*Tabel2[[#This Row],[Anskaffelsespris]]/SUM(Tabel2[Anskaffelsespris])),\"\")","v":""}]
[null,null,null,{"$f":"IFERROR(IF($C$8=\"Manuel\",\"\",IF($C$9=\"Ja\",$C$10,$C$4)*Tabel2[[#This Row],[Anskaffelsespris]]/SUM(Tabel2[Anskaffelsespris])),\"\")","v":""},{"$f":"IFERROR(IF($C$8=\"Manuel\",\"\",IF($C$9=\"Ja\",$C$11,$C$5)*Tabel2[[#This Row],[Anskaffelsespris]]/SUM(Tabel2[Anskaffelsespris])),\"\")","v":""}]
[null,null,null,{"$f":"IFERROR(IF($C$8=\"Manuel\",\"\",IF($C$9=\"Ja\",$C$10,$C$4)*Tabel2[[#This Row],[Anskaffelsespris]]/SUM(Tabel2[Anskaffelsespris])),\"\")","v":""},{"$f":"IFERROR(IF($C$8=\"Manuel\",\"\",IF($C$9=\"Ja\",$C$11,$C$5)*Tabel2[[#This Row],[Anskaffelsespris]]/SUM(Tabel2[Anskaffelsespris])),\"\")","v":""}]
[null,null,null,{"$f":"IFERROR(IF($C$8=\"Manuel\",\"\",IF($C$9=\"Ja\",$C$10,$C$4)*Tabel2[[#This Row],[Anskaffelsespris]]/SUM(Tabel2[Anskaffelsespris])),\"\")","v":""},{"$f":"IFERROR(IF($C$8=\"Manuel\",\"\",IF($C$9=\"Ja\",$C$11,$C$5)*Tabel2[[#This Row],[Anskaffelsespris]]/SUM(Tabel2[Anskaffelsespris])),\"\")","v":""}]
[null,null,null,{"$f":"IFERROR(IF($C$8=\"Manuel\",\"\",IF($C$9=\"Ja\",$C$10,$C$4)*Tabel2[[#This Row],[Anskaffelsespris]]/SUM(Tabel2[Anskaffelsespris])),\"\")","v":""},{"$f":"IFERROR(IF($C$8=\"Manuel\",\"\",IF($C$9=\"Ja\",$C$11,$C$5)*Tabel2[[#This Row],[Anskaffelsespris]]/SUM(Tabel2[Anskaffelsespris])),\"\")","v":""}]
[null,null,null,{"$f":"IFERROR(IF($C$8=\"Manuel\",\"\",IF($C$9=\"Ja\",$C$10,$C$4)*Tabel2[[#This Row],[Anskaffelsespris]]/SUM(Tabel2[Anskaffelsespris])),\"\")","v":""},{"$f":"IFERROR(IF($C$8=\"Manuel\",\"\",IF($C$9=\"Ja\",$C$11,$C$5)*Tabel2[[#This Row],[Anskaffelsespris]]/SUM(Tabel2[Anskaffelsespris])),\"\")","v":""}]
[null,null,null,{"$f":"IFERROR(IF($C$8=\"Manuel\",\"\",IF($C$9=\"Ja\",$C$10,$C$4)*Tabel2[[#This Row],[Anskaffelsespris]]/SUM(Tabel2[Anskaffelsespris])),\"\")","v":""},{"$f":"IFERROR(IF($C$8=\"Manuel\",\"\",IF($C$9=\"Ja\",$C$11,$C$5)*Tabel2[[#This Row],[Anskaffelsespris]]/SUM(Tabel2[Anskaffelsespris])),\"\")","v":""}]
[null,null,null,{"$f":"IFERROR(IF($C$8=\"Manuel\",\"\",IF($C$9=\"Ja\",$C$10,$C$4)*Tabel2[[#This Row],[Anskaffelsespris]]/SUM(Tabel2[Anskaffelsespris])),\"\")","v":""},{"$f":"IFERROR(IF($C$8=\"Manuel\",\"\",IF($C$9=\"Ja\",$C$11,$C$5)*Tabel2[[#This Row],[Anskaffelsespris]]/SUM(Tabel2[Anskaffelsespris])),\"\")","v":""}]
[null,null,null,{"$f":"IFERROR(IF($C$8=\"Manuel\",\"\",IF($C$9=\"Ja\",$C$10,$C$4)*Tabel2[[#This Row],[Anskaffelsespris]]/SUM(Tabel2[Anskaffelsespris])),\"\")","v":""},{"$f":"IFERROR(IF($C$8=\"Manuel\",\"\",IF($C$9=\"Ja\",$C$11,$C$5)*Tabel2[[#This Row],[Anskaffelsespris]]/SUM(Tabel2[Anskaffelsespris])),\"\")","v":""}]
[null,null,null,{"$f":"IFERROR(IF($C$8=\"Manuel\",\"\",IF($C$9=\"Ja\",$C$10,$C$4)*Tabel2[[#This Row],[Anskaffelsespris]]/SUM(Tabel2[Anskaffelsespris])),\"\")","v":""},{"$f":"IFERROR(IF($C$8=\"Manuel\",\"\",IF($C$9=\"Ja\",$C$11,$C$5)*Tabel2[[#This Row],[Anskaffelsespris]]/SUM(Tabel2[Anskaffelsespris])),\"\")","v":""}]
[null,null,null,{"$f":"IFERROR(IF($C$8=\"Manuel\",\"\",IF($C$9=\"Ja\",$C$10,$C$4)*Tabel2[[#This Row],[Anskaffelsespris]]/SUM(Tabel2[Anskaffelsespris])),\"\")","v":""},{"$f":"IFERROR(IF($C$8=\"Manuel\",\"\",IF($C$9=\"Ja\",$C$11,$C$5)*Tabel2[[#This Row],[Anskaffelsespris]]/SUM(Tabel2[Anskaffelsespris])),\"\")","v":""}]
[null,null,null,{"$f":"IFERROR(IF($C$8=\"Manuel\",\"\",IF($C$9=\"Ja\",$C$10,$C$4)*Tabel2[[#This Row],[Anskaffelsespris]]/SUM(Tabel2[Anskaffelsespris])),\"\")","v":""},{"$f":"IFERROR(IF($C$8=\"Manuel\",\"\",IF($C$9=\"Ja\",$C$11,$C$5)*Tabel2[[#This Row],[Anskaffelsespris]]/SUM(Tabel2[Anskaffelsespris])),\"\")","v":""}]
[null,null,null,{"$f":"IFERROR(IF($C$8=\"Manuel\",\"\",IF($C$9=\"Ja\",$C$10,$C$4)*Tabel2[[#This Row],[Anskaffelsespris]]/SUM(Tabel2[Anskaffelsespris])),\"\")","v":""},{"$f":"IFERROR(IF($C$8=\"Manuel\",\"\",IF($C$9=\"Ja\",$C$11,$C$5)*Tabel2[[#This Row],[Anskaffelsespris]]/SUM(Tabel2[Anskaffelsespris])),\"\")","v":""}]
[null,null,null,{"$f":"IFERROR(IF($C$8=\"Manuel\",\"\",IF($C$9=\"Ja\",$C$10,$C$4)*Tabel2[[#This Row],[Anskaffelsespris]]/SUM(Tabel2[Anskaffelsespris])),\"\")","v":""},{"$f":"IFERROR(IF($C$8=\"Manuel\",\"\",IF($C$9=\"Ja\",$C$11,$C$5)*Tabel2[[#This Row],[Anskaffelsespris]]/SUM(Tabel2[Anskaffelsespris])),\"\")","v":""}]
[null,null,null,{"$f":"IFERROR(IF($C$8=\"Manuel\",\"\",IF($C$9=\"Ja\",$C$10,$C$4)*Tabel2[[#This Row],[Anskaffelsespris]]/SUM(Tabel2[Anskaffelsespris])),\"\")","v":""},{"$f":"IFERROR(IF($C$8=\"Manuel\",\"\",IF($C$9=\"Ja\",$C$11,$C$5)*Tabel2[[#This Row],[Anskaffelsespris]]/SUM(Tabel2[Anskaffelsespris])),\"\")","v":""}]
[null,null,null,{"$f":"IFERROR(IF($C$8=\"Manuel\",\"\",IF($C$9=\"Ja\",$C$10,$C$4)*Tabel2[[#This Row],[Anskaffelsespris]]/SUM(Tabel2[Anskaffelsespris])),\"\")","v":""},{"$f":"IFERROR(IF($C$8=\"Manuel\",\"\",IF($C$9=\"Ja\",$C$11,$C$5)*Tabel2[[#This Row],[Anskaffelsespris]]/SUM(Tabel2[Anskaffelsespris])),\"\")","v":""}]
[null,null,null,{"$f":"IFERROR(IF($C$8=\"Manuel\",\"\",IF($C$9=\"Ja\",$C$10,$C$4)*Tabel2[[#This Row],[Anskaffelsespris]]/SUM(Tabel2[Anskaffelsespris])),\"\")","v":""},{"$f":"IFERROR(IF($C$8=\"Manuel\",\"\",IF($C$9=\"Ja\",$C$11,$C$5)*Tabel2[[#This Row],[Anskaffelsespris]]/SUM(Tabel2[Anskaffelsespris])),\"\")","v":""}]
[null,null,null,{"$f":"IFERROR(IF($C$8=\"Manuel\",\"\",IF($C$9=\"Ja\",$C$10,$C$4)*Tabel2[[#This Row],[Anskaffelsespris]]/SUM(Tabel2[Anskaffelsespris])),\"\")","v":""},{"$f":"IFERROR(IF($C$8=\"Manuel\",\"\",IF($C$9=\"Ja\",$C$11,$C$5)*Tabel2[[#This Row],[Anskaffelsespris]]/SUM(Tabel2[Anskaffelsespris])),\"\")","v":""}]
[null,null,null,{"$f":"IFERROR(IF($C$8=\"Manuel\",\"\",IF($C$9=\"Ja\",$C$10,$C$4)*Tabel2[[#This Row],[Anskaffelsespris]]/SUM(Tabel2[Anskaffelsespris])),\"\")","v":""},{"$f":"IFERROR(IF($C$8=\"Manuel\",\"\",IF($C$9=\"Ja\",$C$11,$C$5)*Tabel2[[#This Row],[Anskaffelsespris]]/SUM(Tabel2[Anskaffelsespris])),\"\")","v":""}]
[null,null,null,{"$f":"IFERROR(IF($C$8=\"Manuel\",\"\",IF($C$9=\"Ja\",$C$10,$C$4)*Tabel2[[#This Row],[Anskaffelsespris]]/SUM(Tabel2[Anskaffelsespris])),\"\")","v":""},{"$f":"IFERROR(IF($C$8=\"Manuel\",\"\",IF($C$9=\"Ja\",$C$11,$C$5)*Tabel2[[#This Row],[Anskaffelsespris]]/SUM(Tabel2[Anskaffelsespris])),\"\")","v":""}]
[null,null,null,{"$f":"IFERROR(IF($C$8=\"Manuel\",\"\",IF($C$9=\"Ja\",$C$10,$C$4)*Tabel2[[#This Row],[Anskaffelsespris]]/SUM(Tabel2[Anskaffelsespris])),\"\")","v":""},{"$f":"IFERROR(IF($C$8=\"Manuel\",\"\",IF($C$9=\"Ja\",$C$11,$C$5)*Tabel2[[#This Row],[Anskaffelsespris]]/SUM(Tabel2[Anskaffelsespris])),\"\")","v":""}]

{"sheet":"Renteomkostninger","index":2,"n_rows":12,"n_cols":8,"rows_kept":12,"cut":false,"hidden":false,"merged":[]}
[]
[null,"Udfyld felter malet grå"]
[]
[null,"Samlede ansøgte finansieringsomkostninger",{"$f":"SUM(Tabel1[Finansierings-omkostninger])","v":0}]
[null,"Heraf engangsomkostninger",{"$f":"SUM(Tabel1[Heraf engangs-omkostninger])","v":0}]
[null,"Heraf varige tillæg",{"$f":"C4-C5","v":0}]
[null,"Samlede restgæld på lån pr. 31-12-2025",{"$f":"SUM(Tabel1[Restgæld \npr. 31-12-2025])","v":0}]
[]
[]
[]
[]
[null,"Låneengagement","Aftale ID / Fak.nr.","Restgæld \npr. 31-12-2025","Finansierings-omkostninger","Heraf engangs-omkostninger","Dokumentation","Evt bemærkninger (valgfrit)"]

{"sheet":"SE EKSEMPLER =>","index":3,"n_rows":1,"n_cols":1,"rows_kept":1,"cut":false,"hidden":false,"merged":[]}
["BREAKER"]

{"sheet":"Eks. på Fordeling","index":4,"n_rows":39,"n_cols":8,"rows_kept":39,"cut":false,"hidden":false,"merged":[[4,6,4,7],[5,6,5,7],[8,6,8,7],[9,6,9,7],[12,3,12,4],[12,5,12,6]]}
[]
[null,"Udfyld felter"]
[]
[null,"Samlede finansieringsomkostninger i 2025",{"$f":"'Eks. på Renteomkostninger'!C4","v":5640000},null,"Kontrol af manuel fordeling"]
[null,"heraf engangsomkostninger",{"$f":"'Eks. på Renteomkostninger'!C5","v":3250000},null,"Samlede finansieringsomk.",null,{"$f":"IF($C$8=\"Manuel\",\nIF(ABS(SUM(F$15:F39)-C4)<1,\"Afstemt\",\"Der er manuelt fordelt \")\n&IF(ABS(SUM(F$15:F39)-C4)<1,\"\",ABS(SUM(F$15:F39)-C4))\n&IF(ABS(SUM(F$15:F39)-C4)<1,\"\",IF((SUM(F$15:F39)-C4)<0,\" kr. for lidt\",\" kr. for meget\")),\"\")","v":""}]
[null,"Samlede restgæld på lån",{"$f":"'Eks. på Renteomkostninger'!C7","v":120000000},null,"Samlede engangsomk.",null,{"$f":"IF($C$8=\"Manuel\",\nIF(ABS(SUM(G$15:G39)-C5)<1,\"Afstemt\",\"Der er manuelt fordelt \")\n&IF(ABS(SUM(G$15:G39)-C5)<1,\"\",ABS(SUM(G$15:G39)-C5))\n&IF(ABS(SUM(G$15:G39)-C5)<1,\"\",IF((SUM(G$15:G39)-C5)<0,\" kr. for lidt\",\" kr. for meget\")),\"\")","v":""}]
[]
[null,"Vælg fordelingsmetode (beregnet/manuel)","Beregnet",null,"Kontrol af restgæld"]
[null,"Nedskalér finansieringsomk. (Ja/Nej)","Nej",null,"Restgæld og anskaffelsespris",null,{"$f":"IF(SUM(Tabel23[Anskaffelsespris])-C6>=0,\"Afstemt\",\"Restgælden overstiger anskaffelsessum\")","v":"Afstemt"}]
[null,"Nedskaleret finansieringsomkostninger",{"$f":"IF($C$9=\"Ja\",MIN(1,SUM(Tabel23[Anskaffelsespris])/$C$6)*C4,C4)","v":5640000},null,"Evt. bemærkning"]
[null,"heraf engangsomkostninger",{"$f":"IF($C$9=\"Ja\",MIN(1,SUM(Tabel23[Anskaffelsespris])/$C$6)*C5,C5)","v":3250000}]
[]
[null,null,null,"Beregnet fordeling",null,"Manuel"]
[null,"Tillægstitel","Anskaffelsespris","Finansierings-omkostninger","Heraf engangs-omkostninger","Finansieringsomkostninger ","Heraf engangs-omkostninger ","Evt. bemærkning (valgfrit)"]
[null,"Seperatkloakering",10000000,{"$f":"IFERROR(IF($C$8=\"Manuel\",\"\",IF($C$9=\"Ja\",$C$10,$C$4)*Tabel23[[#This Row],[Anskaffelsespris]]/SUM(Tabel23[Anskaffelsespris])),\"\")","v":402857.14285714284},{"$f":"IFERROR(IF($C$8=\"Manuel\",\"\",IF($C$9=\"Ja\",$C$11,$C$5)*Tabel23[[#This Row],[Anskaffelsespris]]/SUM(Tabel23[Anskaffelsespris])),\"\")","v":232142.85714285713}]
[null,"Udvidelse",85000000,{"$f":"IFERROR(IF($C$8=\"Manuel\",\"\",IF($C$9=\"Ja\",$C$10,$C$4)*Tabel23[[#This Row],[Anskaffelsespris]]/SUM(Tabel23[Anskaffelsespris])),\"\")","v":3424285.7142857141},{"$f":"IFERROR(IF($C$8=\"Manuel\",\"\",IF($C$9=\"Ja\",$C$11,$C$5)*Tabel23[[#This Row],[Anskaffelsespris]]/SUM(Tabel23[Anskaffelsespris])),\"\")","v":1973214.2857142857}]
[null,"Nyt renseanlæg",45000000,{"$f":"IFERROR(IF($C$8=\"Manuel\",\"\",IF($C$9=\"Ja\",$C$10,$C$4)*Tabel23[[#This Row],[Anskaffelsespris]]/SUM(Tabel23[Anskaffelsespris])),\"\")","v":1812857.142857143},{"$f":"IFERROR(IF($C$8=\"Manuel\",\"\",IF($C$9=\"Ja\",$C$11,$C$5)*Tabel23[[#This Row],[Anskaffelsespris]]/SUM(Tabel23[Anskaffelsespris])),\"\")","v":1044642.8571428572}]
[null,null,null,{"$f":"IFERROR(IF($C$8=\"Manuel\",\"\",IF($C$9=\"Ja\",$C$10,$C$4)*Tabel23[[#This Row],[Anskaffelsespris]]/SUM(Tabel23[Anskaffelsespris])),\"\")","v":0},{"$f":"IFERROR(IF($C$8=\"Manuel\",\"\",IF($C$9=\"Ja\",$C$11,$C$5)*Tabel23[[#This Row],[Anskaffelsespris]]/SUM(Tabel23[Anskaffelsespris])),\"\")","v":0}]
[null,null,null,{"$f":"IFERROR(IF($C$8=\"Manuel\",\"\",IF($C$9=\"Ja\",$C$10,$C$4)*Tabel23[[#This Row],[Anskaffelsespris]]/SUM(Tabel23[Anskaffelsespris])),\"\")","v":0},{"$f":"IFERROR(IF($C$8=\"Manuel\",\"\",IF($C$9=\"Ja\",$C$11,$C$5)*Tabel23[[#This Row],[Anskaffelsespris]]/SUM(Tabel23[Anskaffelsespris])),\"\")","v":0}]
[null,null,null,{"$f":"IFERROR(IF($C$8=\"Manuel\",\"\",IF($C$9=\"Ja\",$C$10,$C$4)*Tabel23[[#This Row],[Anskaffelsespris]]/SUM(Tabel23[Anskaffelsespris])),\"\")","v":0},{"$f":"IFERROR(IF($C$8=\"Manuel\",\"\",IF($C$9=\"Ja\",$C$11,$C$5)*Tabel23[[#This Row],[Anskaffelsespris]]/SUM(Tabel23[Anskaffelsespris])),\"\")","v":0}]
[null,null,null,{"$f":"IFERROR(IF($C$8=\"Manuel\",\"\",IF($C$9=\"Ja\",$C$10,$C$4)*Tabel23[[#This Row],[Anskaffelsespris]]/SUM(Tabel23[Anskaffelsespris])),\"\")","v":0},{"$f":"IFERROR(IF($C$8=\"Manuel\",\"\",IF($C$9=\"Ja\",$C$11,$C$5)*Tabel23[[#This Row],[Anskaffelsespris]]/SUM(Tabel23[Anskaffelsespris])),\"\")","v":0}]
[null,null,null,{"$f":"IFERROR(IF($C$8=\"Manuel\",\"\",IF($C$9=\"Ja\",$C$10,$C$4)*Tabel23[[#This Row],[Anskaffelsespris]]/SUM(Tabel23[Anskaffelsespris])),\"\")","v":0},{"$f":"IFERROR(IF($C$8=\"Manuel\",\"\",IF($C$9=\"Ja\",$C$11,$C$5)*Tabel23[[#This Row],[Anskaffelsespris]]/SUM(Tabel23[Anskaffelsespris])),\"\")","v":0}]
[null,null,null,{"$f":"IFERROR(IF($C$8=\"Manuel\",\"\",IF($C$9=\"Ja\",$C$10,$C$4)*Tabel23[[#This Row],[Anskaffelsespris]]/SUM(Tabel23[Anskaffelsespris])),\"\")","v":0},{"$f":"IFERROR(IF($C$8=\"Manuel\",\"\",IF($C$9=\"Ja\",$C$11,$C$5)*Tabel23[[#This Row],[Anskaffelsespris]]/SUM(Tabel23[Anskaffelsespris])),\"\")","v":0}]
[null,null,null,{"$f":"IFERROR(IF($C$8=\"Manuel\",\"\",IF($C$9=\"Ja\",$C$10,$C$4)*Tabel23[[#This Row],[Anskaffelsespris]]/SUM(Tabel23[Anskaffelsespris])),\"\")","v":0},{"$f":"IFERROR(IF($C$8=\"Manuel\",\"\",IF($C$9=\"Ja\",$C$11,$C$5)*Tabel23[[#This Row],[Anskaffelsespris]]/SUM(Tabel23[Anskaffelsespris])),\"\")","v":0}]
[null,null,null,{"$f":"IFERROR(IF($C$8=\"Manuel\",\"\",IF($C$9=\"Ja\",$C$10,$C$4)*Tabel23[[#This Row],[Anskaffelsespris]]/SUM(Tabel23[Anskaffelsespris])),\"\")","v":0},{"$f":"IFERROR(IF($C$8=\"Manuel\",\"\",IF($C$9=\"Ja\",$C$11,$C$5)*Tabel23[[#This Row],[Anskaffelsespris]]/SUM(Tabel23[Anskaffelsespris])),\"\")","v":0}]
[null,null,null,{"$f":"IFERROR(IF($C$8=\"Manuel\",\"\",IF($C$9=\"Ja\",$C$10,$C$4)*Tabel23[[#This Row],[Anskaffelsespris]]/SUM(Tabel23[Anskaffelsespris])),\"\")","v":0},{"$f":"IFERROR(IF($C$8=\"Manuel\",\"\",IF($C$9=\"Ja\",$C$11,$C$5)*Tabel23[[#This Row],[Anskaffelsespris]]/SUM(Tabel23[Anskaffelsespris])),\"\")","v":0}]
[null,null,null,{"$f":"IFERROR(IF($C$8=\"Manuel\",\"\",IF($C$9=\"Ja\",$C$10,$C$4)*Tabel23[[#This Row],[Anskaffelsespris]]/SUM(Tabel23[Anskaffelsespris])),\"\")","v":0},{"$f":"IFERROR(IF($C$8=\"Manuel\",\"\",IF($C$9=\"Ja\",$C$11,$C$5)*Tabel23[[#This Row],[Anskaffelsespris]]/SUM(Tabel23[Anskaffelsespris])),\"\")","v":0}]
[null,null,null,{"$f":"IFERROR(IF($C$8=\"Manuel\",\"\",IF($C$9=\"Ja\",$C$10,$C$4)*Tabel23[[#This Row],[Anskaffelsespris]]/SUM(Tabel23[Anskaffelsespris])),\"\")","v":0},{"$f":"IFERROR(IF($C$8=\"Manuel\",\"\",IF($C$9=\"Ja\",$C$11,$C$5)*Tabel23[[#This Row],[Anskaffelsespris]]/SUM(Tabel23[Anskaffelsespris])),\"\")","v":0}]
[null,null,null,{"$f":"IFERROR(IF($C$8=\"Manuel\",\"\",IF($C$9=\"Ja\",$C$10,$C$4)*Tabel23[[#This Row],[Anskaffelsespris]]/SUM(Tabel23[Anskaffelsespris])),\"\")","v":0},{"$f":"IFERROR(IF($C$8=\"Manuel\",\"\",IF($C$9=\"Ja\",$C$11,$C$5)*Tabel23[[#This Row],[Anskaffelsespris]]/SUM(Tabel23[Anskaffelsespris])),\"\")","v":0}]
[null,null,null,{"$f":"IFERROR(IF($C$8=\"Manuel\",\"\",IF($C$9=\"Ja\",$C$10,$C$4)*Tabel23[[#This Row],[Anskaffelsespris]]/SUM(Tabel23[Anskaffelsespris])),\"\")","v":0},{"$f":"IFERROR(IF($C$8=\"Manuel\",\"\",IF($C$9=\"Ja\",$C$11,$C$5)*Tabel23[[#This Row],[Anskaffelsespris]]/SUM(Tabel23[Anskaffelsespris])),\"\")","v":0}]
[null,null,null,{"$f":"IFERROR(IF($C$8=\"Manuel\",\"\",IF($C$9=\"Ja\",$C$10,$C$4)*Tabel23[[#This Row],[Anskaffelsespris]]/SUM(Tabel23[Anskaffelsespris])),\"\")","v":0},{"$f":"IFERROR(IF($C$8=\"Manuel\",\"\",IF($C$9=\"Ja\",$C$11,$C$5)*Tabel23[[#This Row],[Anskaffelsespris]]/SUM(Tabel23[Anskaffelsespris])),\"\")","v":0}]
[null,null,null,{"$f":"IFERROR(IF($C$8=\"Manuel\",\"\",IF($C$9=\"Ja\",$C$10,$C$4)*Tabel23[[#This Row],[Anskaffelsespris]]/SUM(Tabel23[Anskaffelsespris])),\"\")","v":0},{"$f":"IFERROR(IF($C$8=\"Manuel\",\"\",IF($C$9=\"Ja\",$C$11,$C$5)*Tabel23[[#This Row],[Anskaffelsespris]]/SUM(Tabel23[Anskaffelsespris])),\"\")","v":0}]
[null,null,null,{"$f":"IFERROR(IF($C$8=\"Manuel\",\"\",IF($C$9=\"Ja\",$C$10,$C$4)*Tabel23[[#This Row],[Anskaffelsespris]]/SUM(Tabel23[Anskaffelsespris])),\"\")","v":0},{"$f":"IFERROR(IF($C$8=\"Manuel\",\"\",IF($C$9=\"Ja\",$C$11,$C$5)*Tabel23[[#This Row],[Anskaffelsespris]]/SUM(Tabel23[Anskaffelsespris])),\"\")","v":0}]
[null,null,null,{"$f":"IFERROR(IF($C$8=\"Manuel\",\"\",IF($C$9=\"Ja\",$C$10,$C$4)*Tabel23[[#This Row],[Anskaffelsespris]]/SUM(Tabel23[Anskaffelsespris])),\"\")","v":0},{"$f":"IFERROR(IF($C$8=\"Manuel\",\"\",IF($C$9=\"Ja\",$C$11,$C$5)*Tabel23[[#This Row],[Anskaffelsespris]]/SUM(Tabel23[Anskaffelsespris])),\"\")","v":0}]
[null,null,null,{"$f":"IFERROR(IF($C$8=\"Manuel\",\"\",IF($C$9=\"Ja\",$C$10,$C$4)*Tabel23[[#This Row],[Anskaffelsespris]]/SUM(Tabel23[Anskaffelsespris])),\"\")","v":0},{"$f":"IFERROR(IF($C$8=\"Manuel\",\"\",IF($C$9=\"Ja\",$C$11,$C$5)*Tabel23[[#This Row],[Anskaffelsespris]]/SUM(Tabel23[Anskaffelsespris])),\"\")","v":0}]
[null,null,null,{"$f":"IFERROR(IF($C$8=\"Manuel\",\"\",IF($C$9=\"Ja\",$C$10,$C$4)*Tabel23[[#This Row],[Anskaffelsespris]]/SUM(Tabel23[Anskaffelsespris])),\"\")","v":0},{"$f":"IFERROR(IF($C$8=\"Manuel\",\"\",IF($C$9=\"Ja\",$C$11,$C$5)*Tabel23[[#This Row],[Anskaffelsespris]]/SUM(Tabel23[Anskaffelsespris])),\"\")","v":0}]
[null,null,null,{"$f":"IFERROR(IF($C$8=\"Manuel\",\"\",IF($C$9=\"Ja\",$C$10,$C$4)*Tabel23[[#This Row],[Anskaffelsespris]]/SUM(Tabel23[Anskaffelsespris])),\"\")","v":0},{"$f":"IFERROR(IF($C$8=\"Manuel\",\"\",IF($C$9=\"Ja\",$C$11,$C$5)*Tabel23[[#This Row],[Anskaffelsespris]]/SUM(Tabel23[Anskaffelsespris])),\"\")","v":0}]
[null,null,null,{"$f":"IFERROR(IF($C$8=\"Manuel\",\"\",IF($C$9=\"Ja\",$C$10,$C$4)*Tabel23[[#This Row],[Anskaffelsespris]]/SUM(Tabel23[Anskaffelsespris])),\"\")","v":0},{"$f":"IFERROR(IF($C$8=\"Manuel\",\"\",IF($C$9=\"Ja\",$C$11,$C$5)*Tabel23[[#This Row],[Anskaffelsespris]]/SUM(Tabel23[Anskaffelsespris])),\"\")","v":0}]
[null,null,null,{"$f":"IFERROR(IF($C$8=\"Manuel\",\"\",IF($C$9=\"Ja\",$C$10,$C$4)*Tabel23[[#This Row],[Anskaffelsespris]]/SUM(Tabel23[Anskaffelsespris])),\"\")","v":0},{"$f":"IFERROR(IF($C$8=\"Manuel\",\"\",IF($C$9=\"Ja\",$C$11,$C$5)*Tabel23[[#This Row],[Anskaffelsespris]]/SUM(Tabel23[Anskaffelsespris])),\"\")","v":0}]

{"sheet":"Eks. på Renteomkostninger","index":5,"n_rows":17,"n_cols":8,"rows_kept":17,"cut":false,"hidden":false,"merged":[]}
[]
[null,"Udfyld felter malet grå"]
[]
[null,"Samlede ansøgte finansieringsomkostninger",{"$f":"SUM(Tabel14[Finansierings-omkostninger])","v":5640000}]
[null,"Heraf engangsomkostninger",{"$f":"SUM(Tabel14[Heraf engangs-omkostninger])","v":3250000}]
[null,"Heraf varige tillæg",{"$f":"C4-C5","v":2390000}]
[null,"Samlede restgæld på lån pr. 31-12-2025",{"$f":"SUM(Tabel14[Restgæld \npr. 31-12-2025])","v":120000000}]
[]
[]
[]
[]
[null,"Låneengagement","Aftale ID / Fak.nr.","Restgæld \npr. 31-12-2025","Finansierings-omkostninger","Heraf engangs-omkostninger","Dokumentation","Evt bemærkninger (valgfrit)"]
[null,"KommuneKredit - Fast","20YYXXXXX",50000000,1700000,0,"Bilag 1","Årsopgørelse fra KK. Omfatter kun 82 pct. af rentebetalingerne for 2025"]
[null,"KommuneKredit - Variabel","20YYXXXXX",10000000,370000,0,"Bilag 1","Årsopgørelse fra KK. Omfatter alle rentebetalingerne for 2025"]
[null,"KommuneKredit - Kredit","20YYXXXXX",60000000,2000000,2250000,"Bilag 1","Årsopgørelse fra KK. Omfatter kun 82 pct. af rentebetalingerne for 2025"]
[null,"Garantiprovision","Fak.nr. XXXXXX",0,570000,0,"Bilag 2","Faktura fra kommune. Provisionssats ½ pct. af restgæld pr. 31.12.2024. Omfatter 95 pct. fak. Beløb"]
[null,"Byggekredit","Fak.nr. XXXXXX",0,1000000,1000000,"Bilag 3","Udtræk fra kreditkonto hvor der sker rentetilskrivning"]